[Event "CCT Julius Baer-D2 2024"]
[Site "Online"]
[Date "2024.09.29"]
[Round "52"]
[White "Daneshvar, Bardiya"]
[Black "Anton Guijarro, David"]
[Result "1/2-1/2"]
[ECO "A88"]
[WhiteElo "2598"]
[BlackElo "2665"]
[Annotator "RC"]
[PlyCount "100"]
[EventDate "2024.09.25"]
[EventType "swiss"]
[EventCountry "NET"]
[SourceTitle "playchess.com"]
[Source "ChessBase"]
[SourceQuality "1"]
[TimeControl "600+2"]

1. d4 {[%emt 0:00:02]} f5 {[%emt 0:00:09]} 2. g3 {[%emt 0:00:04]} Nf6 {[%emt 0:00:01]} 3. Bg2 {[%emt 0:00:00]} g6 {[%emt 0:00:04]} 4. c4 {[%emt 0:00:02]} Bg7 {[%emt 0:00:01]} 5. Nc3 {[%emt 0:00:00]} O-O {[%emt 0:00:01]} 6. Nf3 {[%emt 0:00:01]} d6 {[%emt 0:00:03]} 7. O-O {[%emt 0:00:01]} c6 {[%emt 0:00:01]} 8. Qb3 {[%emt 0:00:07]} Kh8 {[%emt 0:00:04]} 9. Rd1 {[%emt 0:00:03]} Na6 {[%emt 0:00:12]} 10. Qc2 {[%emt 0:00:10]} Qc7 {[%emt 0:00:28]} 11. Bf4 {[%emt 0:00:20]} Nh5 {[%emt 0:00:06]} 12. Bg5 {[%emt 0:00:58]} f4 {[%emt 0:00:17]} 13. Qd2 {[%emt 0:00:12]} e5 {[%emt 0:01:25]} 14. dxe5 {[%emt 0:01:51]} dxe5 {[%emt 0:00:02]} 15. Bd8 {[%emt 0:00:01]} Qf7 {[%emt 0:00:05]} 16. Ng5 {[%emt 0:00:09]} Qg8 {[%emt 0:02:23]} 17. Nge4 {[%emt 0:00:40]} Be6 {[%emt 0:00:25]} 18. Be7 {[%emt 0:00:03]} Rfe8 {[%emt 0:00:18]} 19. Bh4 {[%emt 0:00:38]} h6 {[%emt 0:00:21]} 20. Bf3 {[%emt 0:00:05]} Bxc4 {[%emt 0:00:17]} 21. Nd6 {[%emt 0:00:26]} Rf8 {[%emt 0:00:33]} 22. Be7 {[%emt 0:00:05]} fxg3 {[%emt 0:00:04]} 23. hxg3 {[%emt 0:00:14]} Rxf3 {[%emt 0:00:09]} 24. exf3 {[%emt 0:00:02]} Be6 {[%emt 0:00:08]} 25. Nxb7 {[%emt 0:00:40]} Qf7 {[%emt 0:00:03]} 26. Nc5 {[%emt 0:00:34]} Qxe7 {[%emt 0:00:14]} 27. Nxa6 {[%emt 0:00:02]} Rf8 {[%emt 0:00:04]} 28. Ne4 {[%emt 0:00:16]} Qf7 {[%emt 0:00:54]} 29. Qe3 {[%emt 0:00:10]} Nf6 {[%emt 0:00:22]} 30. Nxf6 {[%emt 0:00:10]} Qxf6 {[%emt 0:00:01]} 31. Nc5 {[%emt 0:00:03]} Bd5 {[%emt 0:00:06]} 32. Rxd5 {[%emt 0:00:38]} cxd5 {[%emt 0:00:01]} 33. Nd7 {[%emt 0:00:02]} d4 {[%emt 0:00:00]} 34. Qa3 {[%emt 0:00:26]} Qxf3 {[%emt 0:00:02]} 35. Nxf8 {[%emt 0:00:01]} Qxa3 {[%emt 0:00:00]} 36. Nxg6+ {[%emt 0:00:05]} Kh7 {[%emt 0:00:01]} 37. bxa3 {[%emt 0:00:00]} Kxg6 {[%emt 0:00:00]} 38. f3 {[%emt 0:00:02]} Kf5 {[%emt 0:00:03]} 39. Kf2 {[%emt 0:00:03]} e4 {[%emt 0:00:01]} 40. fxe4+ {[%emt 0:00:05]} Kxe4 {[%emt 0:00:00]} 41. Rb1 {[%emt 0:00:06]} Kd3 {[%emt 0:00:22]} 42. Rd1+ {[%emt 0:00:10]} Kc2 {[%emt 0:00:10]} 43. Ke2 {[%emt 0:00:00]} h5 {[%emt 0:00:01]} 44. Rd2+ {[%emt 0:00:03]} Kc3 {[%emt 0:00:02]} 45. Rd3+ {[%emt 0:00:05]} Kc2 {[%emt 0:00:01]} 46. a4 {[%emt 0:00:05]} a5 {[%emt 0:00:04]} 47. Rd2+ {[%emt 0:00:03]} Kc3 {[%emt 0:00:02]} 48. Rd3+ {[%emt 0:00:01]} Kc2 {[%emt 0:00:04]} 49. Rd2+ {[%emt 0:00:01]} Kc3 {[%emt 0:00:01]} 50. Rd3+ {[%emt 0:00:00]} Kc2 {[%emt 0:00:00]} 1/2-1/2

[Event "CCT Julius Baer-D2 2024"]
[Site "Online"]
[Date "2024.09.29"]
[Round "52"]
[White "Bok, Benjamin"]
[Black "Lazavik, Denis"]
[Result "1/2-1/2"]
[ECO "D37"]
[WhiteElo "2596"]
[BlackElo "2578"]
[Annotator "RC"]
[PlyCount "73"]
[EventDate "2024.09.25"]
[EventType "swiss"]
[EventCountry "NET"]
[SourceTitle "playchess.com"]
[Source "ChessBase"]
[SourceQuality "1"]
[TimeControl "600+2"]

1. d4 {[%emt 0:00:03]} Nf6 {[%emt 0:00:06]} 2. c4 {[%emt 0:00:01]} e6 {[%emt 0:00:01]} 3. Nf3 {[%emt 0:00:07]} d5 {[%emt 0:00:02]} 4. Nc3 {[%emt 0:00:01]} Be7 {[%emt 0:00:01]} 5. Bf4 {[%emt 0:00:02]} O-O {[%emt 0:00:02]} 6. a3 {[%emt 0:00:02]} Nbd7 {[%emt 0:00:05]} 7. Nb5 {[%emt 0:00:04]} Ne8 {[%emt 0:00:01]} 8. e3 {[%emt 0:00:01]} a6 {[%emt 0:00:03]} 9. Nc3 {[%emt 0:00:01]} dxc4 {[%emt 0:00:01]} 10. Bxc4 {[%emt 0:00:01]} b5 {[%emt 0:00:01]} 11. Be2 {[%emt 0:00:04]} c5 {[%emt 0:00:15]} 12. dxc5 {[%emt 0:00:02]} Nxc5 {[%emt 0:00:01]} 13. Qxd8 {[%emt 0:00:05]} Bxd8 {[%emt 0:00:02]} 14. Rd1 {[%emt 0:01:01]} Bb7 {[%emt 0:00:16]} 15. b4 {[%emt 0:00:31]} Ne4 {[%emt 0:00:12]} 16. Nxe4 {[%emt 0:00:03]} Bxe4 {[%emt 0:00:00]} 17. Ne5 {[%emt 0:00:10]} Nf6 {[%emt 0:00:06]} 18. f3 {[%emt 0:00:11]} Bb7 {[%emt 0:00:16]} 19. e4 {[%emt 0:00:06]} Bb6 {[%emt 0:00:13]} 20. Bg3 {[%emt 0:02:22]} Rfd8 {[%emt 0:01:24]} 21. Rxd8+ {[%emt 0:00:49]} Rxd8 {[%emt 0:00:03]} 22. Bf2 {[%emt 0:00:04]} Bc7 {[%emt 0:00:07]} 23. Nd3 {[%emt 0:00:07]} Nd7 {[%emt 0:00:03]} 24. O-O {[%emt 0:00:25]} Kf8 {[%emt 0:00:09]} 25. Rc1 {[%emt 0:00:05]} Rc8 {[%emt 0:00:20]} 26. Be3 {[%emt 0:00:38]} Ke7 {[%emt 0:00:18]} 27. Kf2 {[%emt 0:00:03]} Bd6 {[%emt 0:00:05]} 28. Rxc8 {[%emt 0:00:16]} Bxc8 {[%emt 0:00:00]} 29. g3 {[%emt 0:00:25]} e5 {[%emt 0:00:37]} 30. h4 {[%emt 0:00:09]} h5 {[%emt 0:00:40]} 31. Bd1 {[%emt 0:00:19]} g6 {[%emt 0:01:12]} 32. Bb3 {[%emt 0:00:05]} Bb7 {[%emt 0:00:05]} 33. Ke2 {[%emt 0:00:05]} Bc6 {[%emt 0:00:05]} 34. Ba2 {[%emt 0:00:34]} Bb7 {[%emt 0:00:08]} 35. Bb3 {[%emt 0:00:44]} Bc6 {[%emt 0:00:03]} 36. Ba2 {[%emt 0:00:12]} Bb7 {[%emt 0:00:02]} 37. Bb3 {[%emt 0:00:29]} 1/2-1/2

[Event "CCT Julius Baer-D2 2024"]
[Site "Online"]
[Date "2024.09.29"]
[Round "52"]
[White "Lazavik, Denis"]
[Black "Bok, Benjamin"]
[Result "1-0"]
[ECO "E24"]
[WhiteElo "2578"]
[BlackElo "2596"]
[Annotator "TA"]
[PlyCount "111"]
[EventDate "2024.09.25"]
[EventType "swiss"]
[EventCountry "NET"]
[SourceTitle "playchess.com"]
[Source "ChessBase"]
[SourceQuality "1"]
[TimeControl "600+2"]

{[%evp 59,111,249,316,35,35,49,19,2,14,0,50,0,185,183,180,183,182,202,253,248,229,89,108,29,79,23,126,122,430,418,393,336,322,312,396,406,970,949,941,914,776,710,718,677,29939,5119,29981,29982,29983,6420,29984,1294,1248,1176]} 1. d4 {[%emt 0:00:03]} Nf6 {[%emt 0:00:04]} 2. c4 {[%emt 0:00:01]} e6 {[%emt 0:00:00]} 3. Nc3 {[%emt 0:00:01]} Bb4 {[%emt 0:00:02]} 4. f3 {[%emt 0:00:01]} c5 {[%emt 0:00:09]} 5. a3 {[%emt 0:00:01]} Bxc3+ {[%emt 0:00:06]} 6. bxc3 {[%emt 0:00:00]} Nc6 {[%emt 0:00:11]} 7. e4 {[%emt 0:00:01]} d6 {[%emt 0:00:01]} 8. Ne2 {[%emt 0:00:03] E24: Nimzo-Indian: Sämisch: Unusual Black 5th moves and 5...c5 sidelines.} b6 {[%emt 0:00:29]} 9. Ng3 $1 {[%emt 0:00:02][%mdl 4] now scores much better than the old 9.Bg5.} Na5 {[%emt 0:00:49]} 10. Bd3 {[%emt 0:00:03]} Ba6 {[%emt 0:00:19]} 11. O-O {[%emt 0:00:01]} Qc7 $146 {[%emt 0:00:06]} ({Predecessor:} 11... Qd7 12. Qe2 O-O-O 13. a4 h6 14. Be3 Kb8 15. Rfb1 Rc8 16. e5 Ne8 17. exd6 cxd4 18. cxd4 Bxc4 {1-0 Wanyama,H (2262)-Shuvalova,P (2492) Titled Tuesday intern op 04th Oct Late blitz 2022 (1)}) 12. Bg5 {[%emt 0:00:12]} Nd7 {[%emt 0:00:12]} 13. f4 {[%emt 0:00:08]} f6 {[%emt 0:01:35]} 14. e5 {[%emt 0:01:07]} O-O-O {[%emt 0:00:31]} 15. exf6 {[%emt 0:00:41]} gxf6 {[%emt 0:00:03]} 16. Bh4 {[%emt 0:00:05]} Bxc4 {[%emt 0:00:55]} 17. Bxc4 {[%emt 0:00:30]} Nxc4 {[%emt 0:00:00]} 18. Qe2 {[%emt 0:00:07]} cxd4 {[%emt 0:00:30]} 19. cxd4 {[%emt 0:00:12]} Rde8 {[%emt 0:00:10]} 20. Ne4 {[%emt 0:01:41]} f5 {[%emt 0:01:06]} 21. Qxc4 {[%emt 0:00:30]} fxe4 {[%emt 0:00:13]} 22. Qb4 {[%emt 0:00:34]} Nb8 {[%emt 0:00:37]} 23. Rac1 {[%emt 0:02:25]} Nc6 {[%emt 0:00:03]} 24. Qb5 {[%emt 0:00:06]} Kb7 {[%emt 0:00:03]} 25. f5 {[%emt 0:00:01]} a6 {[%emt 0:00:37]} 26. Qb3 {[%emt 0:00:13]} Rhf8 {[%emt 0:00:14]} 27. fxe6 {[%emt 0:00:16]} Qg7 {[%emt 0:01:23]} 28. Rfd1 {[%emt 0:00:58]} Qh6 {[%emt 0:00:23]} 29. Qd5 {[%emt 0:00:40]} Rc8 {[%emt 0:00:01]} 30. Bg3 {[%emt 0:00:02]} (30. Qxe4 $2 $19) 30... Rfe8 {[%emt 0:00:07]} 31. Qxd6 $2 {[%emt 0:00:11]} (31. Qxe4 Rxe6 32. Qf3 Rf6 $14) (31. Rc3 $18 Qxe6 32. Qxe6 Rxe6 33. d5) 31... Red8 $1 $14 {[%emt 0:00:03]} 32. Qf4 {[%emt 0:00:01]} Qxe6 {[%emt 0:00:01]} 33. Re1 {[%emt 0:00:05]} Rxd4 {[%emt 0:00:02]} 34. Bf2 {[%emt 0:00:02]} Rd5 {[%emt 0:00:02]} ({Black should try} 34... e3 $11 35. Qxe3 (35. Rxe3 Ne5 $11) 35... Qxe3 36. Rxe3 Rcd8) 35. Qe3 {[%emt 0:00:01]} (35. Rxe4 $14 Qd6 36. Qxd6 Rxd6 37. Rb1) 35... Nd4 $2 {[%emt 0:00:02]} (35... Rb5 $11 {and Black stays safe.}) 36. Rxc8 $18 {[%emt 0:00:01]} (36. Qxe4 $2 Qxe4 37. Rxe4 Rxc1+ $19) 36... Kxc8 {[%emt 0:00:00]} 37. Qc3+ {[%emt 0:00:03]} Nc6 {[%emt 0:00:01]} 38. Qh8+ {[%emt 0:00:02]} Kb7 {[%emt 0:00:01]} 39. Qxh7+ {[%emt 0:00:01]} Rd7 {[%emt 0:00:01]} 40. Qh4 {[%emt 0:00:02]} (40. Qxe4 $18 {is more deadly.} Qxe4 41. Rxe4) 40... Re7 $16 {[%emt 0:00:04]} 41. h3 {[%emt 0:00:01]} (41. Qf4 $16) 41... a5 {[%emt 0:00:02]} (41... Qb3 $11) 42. Qg3 {[%emt 0:00:01]} (42. Qf4 $16) 42... Ka6 {[%emt 0:00:02]} (42... a4 $11 {keeps the balance.}) 43. Qe3 {[%emt 0:00:01]} Nd8 $2 {[%emt 0:00:04][%mdl 8192]} (43... Nb8 $16 {is a better chance.} 44. Bh4 Re8) 44. Rb1 $18 {[%emt 0:00:01]} Rb7 {[%emt 0:00:01]} 45. Qe2+ {[%emt 0:00:01]} Ka7 {[%emt 0:00:03]} 46. Rb5 {[%emt 0:00:03]} Nc6 {[%emt 0:00:02]} 47. Qe3 {[%emt 0:00:01]} Ne7 {[%emt 0:00:03]} (47... Qf6 $142 48. Rxb6 (48. Qxe4 Qa1+ 49. Kh2 Qc3 $18) 48... Kb8 49. Qxe4 Rxb6) 48. Rxa5+ $18 {[%emt 0:00:01]} Kb8 {[%emt 0:00:00]} 49. Bg3+ {[%emt 0:00:01]} Kc8 {[%emt 0:00:01]} 50. Re5 {[%emt 0:00:03]} Qg6 {[%emt 0:00:02]} 51. Rxe4 {[%emt 0:00:06]} Nf5 {[%emt 0:00:01]} 52. Rc4+ {[%emt 0:00:03]} (52. Qc3+ $142 Kd8 53. Qh8+ Kd7 54. Qe5 b5 55. Qd5+ Kc8 56. Re6 Ne7 57. Qc5+ Kd8 58. Qd6+ (58. Rxg6 Nxg6 59. Qd6+ Rd7 60. Qxg6 Re7 61. Bh4 Kd7 62. Qd3+ Ke8 63. Qxb5+ Kf7) 58... Ke8 59. Rxg6 (59. Rxe7+ Rxe7 60. Qxg6+ Kd7 61. Qf5+ Kc6 62. Qf6+ Kd7 63. Bh4 Re4 64. Qf5+ Re6)) 52... Kd7 {[%emt 0:00:03]} 53. Qd3+ {[%emt 0:00:02]} Ke7 {[%emt 0:00:02]} 54. Rg4 {[%emt 0:00:02]} (54. Qe4+ $142 Kf7 55. Qxb7+ Ne7 56. Rf4+ Ke8 57. Qb8+ Kd7 58. Rd4+ Ke6 59. Rd6+ (59. Qxb6+ Kf7 60. Rf4+ Nf5 61. Qc7+ Ke8 62. Qc8+ Ke7 63. Re4+ Kf7 64. Qe8+ Kg7) 59... Kf7 60. Rxg6) 54... Qf7 {[%emt 0:00:04]} 55. Rf4 {[%emt 0:00:02]} (55. Re4+ $142 Kf6 56. Be5+ Ke7 57. Bg7+ Qe6 58. Rxe6+ Kxe6 59. Qe4+ Kf7 60. Qxb7+ Ke6 61. Qe4+ (61. Qxb6+ Kd7 62. Qb5+ Ke6 63. Qe5+ Kd7 64. Qxf5+ Kd6 65. Bd4 Kc6 66. Qe6+ Kb5) 61... Kd7 62. Qxf5+ Kd6 63. Kh1) 55... Rd7 $18 {[%emt 0:00:02]} 56. Qxf5 {[%emt 0:00:02]} 1-0

[Event "CCT Julius Baer-D2 2024"]
[Site "Online"]
[Date "2024.09.29"]
[Round "52"]
[White "Madaminov, Mukhiddin"]
[Black "Indjic, Aleksandar"]
[Result "0-1"]
[ECO "B51"]
[WhiteElo "2512"]
[BlackElo "2611"]
[Annotator "TA"]
[PlyCount "128"]
[EventDate "2024.09.25"]
[EventType "swiss"]
[EventCountry "NET"]
[SourceTitle "playchess.com"]
[Source "ChessBase"]
[SourceQuality "1"]
[TimeControl "600+2"]

{[%evp 42,128,28,16,31,0,0,0,0,-3,0,0,22,0,0,0,0,0,0,-77,-1,-117,-114,-122,-113,-125,-129,-114,-105,-144,-145,-147,-146,-205,-205,-205,-206,-181,-190,-317,-318,-318,-317,-295,-281,-268,-138,-121,-127,-128,-70,-259,-76,-61,-81,-59,-69,-83,-37,-44,0,-97,-94,-361,-358,-629,-559,-1064,-1223,-1597,-1466,-1984,-1434,-5535,-4134,-29968,-29967,-29970,-29968,-29977,-29978,-29978,-29979,-29979,-29980,-29982,-29983,-29985,-29980]} 1. e4 {[%emt 0:00:02]} c5 {[%emt 0:00:09]} 2. Nf3 {[%emt 0:00:01]} d6 {[%emt 0:00:00]} 3. Bb5+ {[%emt 0:00:01]} Nd7 {[%emt 0:00:01]} 4. a4 {[%emt 0:00:01]} Ngf6 {[%emt 0:00:06]} 5. Nc3 {[%emt 0:00:01]} g6 {[%emt 0:00:00]} 6. a5 {[%emt 0:00:05] B51: Sicilian: Moscow Variation (3 Bb5+) without 3...Bd7.} a6 {[%emt 0:00:03]} 7. Be2 {[%emt 0:00:01]} Bg7 {[%emt 0:00:02]} 8. O-O {[%emt 0:00:02]} b5 {[%emt 0:00:05]} 9. axb6 {[%emt 0:00:01]} Bb7 {[%emt 0:00:00]} 10. d3 {[%emt 0:00:05]} O-O {[%emt 0:00:02]} 11. Nd2 {[%emt 0:00:07]} Nxb6 {[%emt 0:00:00]} 12. Nb3 {[%emt 0:00:03]} Qc7 {[%emt 0:00:06]} 13. Na5 {[%emt 0:00:03]} Bc8 {[%emt 0:00:01]} 14. Bd2 $146 {[%emt 0:00:09]} ({Predecessor:} 14. Bg5 e5 15. Qd2 Be6 16. Bf3 Nfd7 17. b3 Rae8 18. Nc4 Nb8 19. h3 Kh8 20. Bg4 {½-½ Robson,R (2669)-Shankland,S (2714) USA-ch Saint Louis 2021 (3)}) 14... Rb8 {[%emt 0:00:05]} 15. Qc1 {[%emt 0:00:07]} Re8 {[%emt 0:00:07]} 16. Bh6 {[%emt 0:00:06]} Bh8 {[%emt 0:00:04]} 17. Re1 {[%emt 0:00:06]} Bg4 {[%emt 0:00:09]} 18. h3 {[%emt 0:00:16]} Bxe2 {[%emt 0:00:02]} 19. Rxe2 {[%emt 0:00:00]} Nfd7 {[%emt 0:00:03]} 20. Be3 {[%emt 0:00:28]} Ra8 {[%emt 0:00:31]} 21. Ra2 {[%emt 0:00:06]} e6 {[%emt 0:00:05]} 22. Qd2 {[%emt 0:01:07]} d5 {[%emt 0:00:04]} 23. exd5 {[%emt 0:00:24]} Nxd5 {[%emt 0:00:10]} 24. Nxd5 {[%emt 0:01:20]} exd5 {[%emt 0:00:00]} 25. Bh6 {[%emt 0:00:04]} Rxe2 {[%emt 0:00:38]} 26. Qxe2 {[%emt 0:00:00]} Nf6 {[%emt 0:00:01]} 27. Ra1 {[%emt 0:00:19]} Re8 {[%emt 0:00:03]} 28. Qd2 {[%emt 0:00:02]} Qb6 {[%emt 0:00:33]} 29. Re1 {[%emt 0:01:37]} Qxb2 {[%emt 0:00:16]} 30. Rxe8+ {[%emt 0:00:14]} Nxe8 {[%emt 0:00:02]} 31. Qe3 {[%emt 0:00:01]} (31. Nb3 $1 $11 {remains equal.}) 31... Qa1+ $17 {[%emt 0:00:02]} 32. Kh2 {[%emt 0:00:02]} Qe5+ {[%emt 0:00:01]} 33. Bf4 {[%emt 0:00:05]} Qxe3 {[%emt 0:00:01]} 34. fxe3 {[%emt 0:00:13]} Bc3 {[%emt 0:00:02]} 35. Nc6 {[%emt 0:00:11]} Kg7 {[%emt 0:00:46]} 36. Ne7 {[%emt 0:00:56]} Nf6 {[%emt 0:00:02]} 37. Nc8 {[%emt 0:00:23]} (37. Bd6 $17) 37... Nd7 $1 $19 {[%emt 0:00:34]} 38. Ne7 {[%emt 0:00:08]} a5 $1 {[%emt 0:01:24]} 39. Nxd5 {[%emt 0:00:02]} Bb2 $1 {[%emt 0:00:01]} 40. e4 {[%emt 0:00:31]} (40. Bg3 {is the only way for White.}) 40... a4 $19 {[%emt 0:00:01]} 41. Bd2 {[%emt 0:00:01]} a3 {[%emt 0:00:17]} 42. Nc3 {[%emt 0:00:09]} Ne5 {[%emt 0:02:35]} 43. Na2 {[%emt 0:00:35]} Nc6 {[%emt 0:00:02]} (43... c4 $19 44. dxc4 Nxc4) 44. Kg3 {[%emt 0:00:11]} Kf6 {[%emt 0:00:27]} 45. Kf2 {[%emt 0:00:05]} Ke5 {[%emt 0:00:05]} ({Black should play} 45... c4 $1 $17 46. Ke3 cxd3 47. Kxd3 Ne5+ 48. Ke2 h5) 46. Ke3 $2 {[%emt 0:00:18] [#]} (46. c3 $15) 46... c4 $2 {[%emt 0:00:36]} (46... Nd4 $1 $19 {[%cal Rd4c2][%mdl 512] has better winning chances.} 47. Ba5 Nxc2+ 48. Kd2 Nd4) 47. c3 $17 {[%emt 0:00:08]} cxd3 $1 {[%emt 0:00:10]} 48. Kxd3 {[%emt 0:00:01]} h5 {[%emt 0:00:08]} 49. Bh6 {[%emt 0:00:07]} Ke6 {[%emt 0:00:04]} (49... Nd8 $17 {aiming for ...Ne6.} 50. g3 Ne6) 50. Kc2 {[%emt 0:00:05]} Ke5 {[%emt 0:00:11]} (50... Nd8 $15 51. Bf4 Nb7) 51. Kd3 $17 {[%emt 0:00:00]} Nd8 {[%emt 0:00:18]} 52. Nb4 $2 {[%emt 0:00:16][%mdl 8192]} (52. g3 $17) 52... Ne6 $19 {[%emt 0:00:05]} 53. Be3 $2 {[%emt 0:00:03]} (53. Nc6+ Kf6 54. Kc2) 53... Nf4+ $19 {[%emt 0:00:14]} 54. Bxf4+ {[%emt 0:00:00]} Kxf4 {[%emt 0:00:01]} 55. c4 {[%emt 0:00:02]} Be5 {[%emt 0:00:02]} 56. c5 {[%emt 0:00:03]} Kg3 {[%emt 0:00:03]} 57. Kc2 {[%emt 0:00:06]} Kxg2 {[%emt 0:00:01]} 58. Kb3 {[%emt 0:00:03]} Kxh3 {[%emt 0:00:01]} 59. Nc6 {[%emt 0:00:08]} Bc7 {[%emt 0:00:02]} 60. Ne7 {[%emt 0:00:01]} h4 {[%emt 0:00:02]} 61. Nd5 {[%emt 0:00:02]} Be5 {[%emt 0:00:01]} 62. Kxa3 {[%emt 0:00:01]} Kg3 {[%emt 0:00:02]} 63. Ne3 {[%emt 0:00:07]} h3 {[%emt 0:00:01]} 64. Nc4 {[%emt 0:00:00]} Bc7 {[%emt 0:00:02]} 0-1

[Event "CCT Julius Baer-D2 2024"]
[Site "Online"]
[Date "2024.09.29"]
[Round "53"]
[White "Indjic, Aleksandar"]
[Black "Daneshvar, Bardiya"]
[Result "1-0"]
[ECO "E20"]
[WhiteElo "2611"]
[BlackElo "2598"]
[Annotator "RC"]
[PlyCount "85"]
[EventDate "2024.09.25"]
[EventType "swiss"]
[EventCountry "NET"]
[SourceTitle "playchess.com"]
[Source "ChessBase"]
[SourceQuality "1"]
[TimeControl "600+2"]

1. d4 {[%emt 0:00:03]} Nf6 {[%emt 0:00:05]} 2. c4 {[%emt 0:00:01]} e6 {[%emt 0:00:01]} 3. Nc3 {[%emt 0:00:00]} Bb4 {[%emt 0:00:02]} 4. f3 {[%emt 0:00:01]} d5 {[%emt 0:00:20]} 5. a3 {[%emt 0:00:02]} Be7 {[%emt 0:00:00]} 6. e4 {[%emt 0:00:03]} dxe4 {[%emt 0:00:01]} 7. fxe4 {[%emt 0:00:01]} c5 {[%emt 0:00:00]} 8. d5 {[%emt 0:00:02]} exd5 {[%emt 0:00:01]} 9. exd5 {[%emt 0:00:01]} O-O {[%emt 0:00:03]} 10. Be2 {[%emt 0:00:03]} a6 {[%emt 0:00:17]} 11. Nf3 {[%emt 0:00:02]} Bd6 {[%emt 0:00:04]} 12. O-O {[%emt 0:00:02]} Bg4 {[%emt 0:00:06]} 13. Nh4 {[%emt 0:00:02]} Bxe2 {[%emt 0:00:11]} 14. Qxe2 {[%emt 0:00:00]} Re8 {[%emt 0:00:02]} 15. Qf3 {[%emt 0:00:04]} Nbd7 {[%emt 0:00:08]} 16. Nf5 {[%emt 0:00:02]} Be5 {[%emt 0:00:19]} 17. Bg5 {[%emt 0:00:06]} Qb6 {[%emt 0:00:15]} 18. Rab1 {[%emt 0:01:51]} Qb3 {[%emt 0:00:03]} 19. d6 {[%emt 0:01:53]} Qxc4 {[%emt 0:00:13]} 20. Qxb7 {[%emt 0:00:11]} Qg4 {[%emt 0:00:52]} 21. Bxf6 {[%emt 0:00:26]} Nxf6 {[%emt 0:00:10]} 22. d7 {[%emt 0:00:19]} Rf8 {[%emt 0:02:02]} 23. Nd5 {[%emt 0:00:38]} Rad8 {[%emt 0:00:30]} 24. Nxf6+ {[%emt 0:00:02]} Bxf6 {[%emt 0:00:02]} 25. Rbd1 {[%emt 0:00:13]} Qe2 {[%emt 0:00:43]} 26. b4 {[%emt 0:00:08]} cxb4 {[%emt 0:00:59]} 27. axb4 {[%emt 0:00:02]} Rb8 {[%emt 0:00:02]} 28. Qc6 {[%emt 0:00:06]} Rfd8 {[%emt 0:00:31]} 29. Rfe1 {[%emt 0:00:07]} Qb5 {[%emt 0:00:05]} 30. Qe4 {[%emt 0:00:26]} h5 {[%emt 0:00:57]} 31. Ne7+ {[%emt 0:00:34]} Bxe7 {[%emt 0:00:17]} 32. Qxe7 {[%emt 0:00:00]} Qb6+ {[%emt 0:00:06]} 33. Kh1 {[%emt 0:00:02]} Qf6 {[%emt 0:00:11]} 34. Qc5 {[%emt 0:00:07]} h4 {[%emt 0:00:19]} 35. h3 {[%emt 0:00:02]} Rf8 {[%emt 0:00:26]} 36. Rd6 {[%emt 0:00:04]} Qf4 {[%emt 0:00:04]} 37. Rd4 {[%emt 0:00:07]} Qf2 {[%emt 0:00:06]} 38. Red1 {[%emt 0:00:03]} Rfd8 {[%emt 0:00:07]} 39. Qe7 {[%emt 0:00:12]} f6 {[%emt 0:00:05]} 40. Qe6+ {[%emt 0:00:02]} Kf8 {[%emt 0:00:05]} 41. Re4 {[%emt 0:00:17]} Qg3 {[%emt 0:00:16]} 42. Qe7+ {[%emt 0:00:04]} Kg8 {[%emt 0:00:01]} 43. Rg4 {[%emt 0:00:01]} 1-0

[Event "CCT Julius Baer-D2 2024"]
[Site "Online"]
[Date "2024.09.29"]
[Round "53"]
[White "Bortnyk, Olexandr"]
[Black "Lazavik, Denis"]
[Result "0-1"]
[ECO "C65"]
[WhiteElo "2608"]
[BlackElo "2578"]
[Annotator "RC"]
[PlyCount "116"]
[EventDate "2024.09.25"]
[EventType "swiss"]
[EventCountry "NET"]
[SourceTitle "playchess.com"]
[Source "ChessBase"]
[SourceQuality "1"]
[TimeControl "600+2"]

1. e4 {[%emt 0:00:09]} e5 {[%emt 0:00:04]} 2. Nf3 {[%emt 0:00:01]} Nc6 {[%emt 0:00:00]} 3. Bb5 {[%emt 0:00:01]} Nf6 {[%emt 0:00:02]} 4. Qe2 {[%emt 0:00:07]} Bc5 {[%emt 0:00:04]} 5. c3 {[%emt 0:00:03]} O-O {[%emt 0:00:15]} 6. O-O {[%emt 0:00:06]} d6 {[%emt 0:00:05]} 7. Bxc6 {[%emt 0:00:31]} bxc6 {[%emt 0:00:02]} 8. d4 {[%emt 0:00:02]} exd4 {[%emt 0:00:18]} 9. cxd4 {[%emt 0:00:00]} Bb6 {[%emt 0:00:00]} 10. h3 {[%emt 0:00:14]} Re8 {[%emt 0:00:08]} 11. e5 {[%emt 0:00:18]} Bf5 {[%emt 0:00:55]} 12. Rd1 {[%emt 0:00:29]} Nd5 {[%emt 0:00:15]} 13. Bg5 {[%emt 0:00:46]} f6 {[%emt 0:00:28]} 14. Bh4 {[%emt 0:00:03]} Qd7 {[%emt 0:00:13]} 15. Nc3 {[%emt 0:00:51]} Nf4 {[%emt 0:00:51]} 16. Qf1 {[%emt 0:00:26]} fxe5 {[%emt 0:00:42]} 17. dxe5 {[%emt 0:00:00]} d5 {[%emt 0:00:08]} 18. Bg3 {[%emt 0:00:28]} Ne6 {[%emt 0:00:28]} 19. Rac1 {[%emt 0:00:23]} Rf8 {[%emt 0:00:50]} 20. Nh4 {[%emt 0:00:40]} h6 {[%emt 0:00:19]} 21. b4 {[%emt 0:00:17]} Bh7 {[%emt 0:00:21]} 22. a4 {[%emt 0:00:42]} a6 {[%emt 0:00:13]} 23. b5 {[%emt 0:01:22]} axb5 {[%emt 0:00:02]} 24. axb5 {[%emt 0:00:01]} d4 {[%emt 0:00:02]} 25. Qc4 {[%emt 0:00:19]} c5 {[%emt 0:00:40]} 26. Nd5 {[%emt 0:00:22]} Be4 {[%emt 0:00:16]} 27. Nc3 {[%emt 0:00:39]} Bh7 {[%emt 0:00:06]} 28. Nd5 {[%emt 0:00:11]} Kh8 {[%emt 0:00:33]} 29. Ra1 {[%emt 0:00:29]} Rxa1 {[%emt 0:00:09]} 30. Rxa1 {[%emt 0:00:00]} Be4 {[%emt 0:00:00]} 31. Nc3 {[%emt 0:00:01]} Bh7 {[%emt 0:00:13]} 32. Nd5 {[%emt 0:00:08]} d3 {[%emt 0:00:49]} 33. Rd1 {[%emt 0:00:15]} Rd8 {[%emt 0:00:09]} 34. Nf4 {[%emt 0:00:34]} Nxf4 {[%emt 0:00:38]} 35. Bxf4 {[%emt 0:00:00]} Qd5 {[%emt 0:00:03]} 36. Qxd5 {[%emt 0:00:05]} Rxd5 {[%emt 0:00:00]} 37. e6 {[%emt 0:00:01]} Kg8 {[%emt 0:00:01]} 38. Nf3 {[%emt 0:00:04]} Bf5 {[%emt 0:00:26]} 39. Re1 {[%emt 0:00:02]} Kf8 {[%emt 0:00:06]} 40. g4 {[%emt 0:00:00]} Ba5 {[%emt 0:00:20]} 41. Bd2 {[%emt 0:00:08]} Bxd2 {[%emt 0:00:04]} 42. Nxd2 {[%emt 0:00:00]} Bh7 {[%emt 0:00:01]} 43. f4 {[%emt 0:00:00]} c4 {[%emt 0:00:03]} 44. Nxc4 {[%emt 0:00:02]} Rd4 {[%emt 0:00:03]} 45. e7+ {[%emt 0:00:09]} Ke8 {[%emt 0:00:00]} 46. Nd2 {[%emt 0:00:03]} Rxf4 {[%emt 0:00:02]} 47. Kg2 {[%emt 0:00:01]} Rb4 {[%emt 0:00:01]} 48. Kf3 {[%emt 0:00:01]} Rxb5 {[%emt 0:00:01]} 49. Rc1 {[%emt 0:00:00]} c5 {[%emt 0:00:04]} 50. Kf4 {[%emt 0:00:06]} Kxe7 {[%emt 0:00:01]} 51. Ke5 {[%emt 0:00:00]} Rb2 {[%emt 0:00:04]} 52. Nf3 {[%emt 0:00:02]} Re2+ {[%emt 0:00:03]} 53. Kf4 {[%emt 0:00:02]} Rc2 {[%emt 0:00:02]} 54. Ra1 {[%emt 0:00:03]} g5+ {[%emt 0:00:02]} 55. Kg3 {[%emt 0:00:02]} Be4 {[%emt 0:00:01]} 56. Re1 {[%emt 0:00:01]} Re2 {[%emt 0:00:01]} 57. Rc1 {[%emt 0:00:03]} Re3 {[%emt 0:00:00]} 58. Rxc5 {[%emt 0:00:02]} Rxf3+ {[%emt 0:00:01]} 0-1